[Event "1000IM Saint Louis 2022"]
[Site "Saint Louis"]
[Date "2022.07.20"]
[Round "3.2"]
[White "Proleiko, Julian"]
[Black "Tokhirjonova, Gulrukhbegim"]
[Result "1/2-1/2"]
[ECO "E20"]
[WhiteElo "2238"]
[BlackElo "2329"]
[Annotator "TA"]
[PlyCount "168"]
[EventDate "2022.07.20"]
[EventType "tourn"]
[EventCountry "USA"]
[SourceTitle "playchess.com"]
[Source "ChessBase"]
[SourceQuality "1"]
[TimeControl "5400+30"]

{[%evp 19,168,45,68,57,89,66,77,60,84,57,52,68,38,71,101,98,91,101,130,121,111,135,143,140,139,141,179,170,179,158,221,220,301,66,133,143,137,130,129,104,97,127,522,120,116,115,118,114,119,127,127,117,144,143,145,147,157,156,156,144,166,155,163,120,171,179,249,238,322,320,335,335,335,335,335,335,476,335,491,396,788,788,715,473,1976,2072,1730,743,729,641,858,835,785,772,718,672,576,301,427,130,500,410,823,694,793,785,756,661,694,592,564,312,29951,29952,2070,312,29955,29957,29955,29953,29954,29959,29962,312,29968,897,1612,687,671,72,72,0,664,663,623,608,601,594,554,539,524,66,66,66,66,66,73,73,80,80,87]} 1. d4 {[%emt 0:00:01]} Nf6 {[%emt 0:01:07]} 2. c4 {[%emt 0:00:21]} e6 {[%emt 0:00:17]} 3. Nc3 {[%emt 0:00:32]} Bb4 {[%emt 0:00:44]} 4. f3 {[%emt 0:00:04]} c5 {[%emt 0:04:55]} 5. d5 {[%emt 0:00:14]} b5 {[%emt 0:03:54]} 6. e4 {[%emt 0:00:15]} bxc4 {[%emt 0:01:22]} 7. Bxc4 {[%emt 0:00:19]} exd5 {[%emt 0:00:53]} 8. Bxd5 {[%emt 0:00:14]} Nxd5 {[%emt 0:06:12]} 9. Qxd5 {[%emt 0:00:07]} Nc6 {[%emt 0:00:07]} 10. Nge2 {[%emt 0:05:55][%cal Bg1e2,Be2f4,Bf4d3][%mdl 32]} O-O {[%emt 0:04:33]} 11. O-O {[%emt 0:02:24] E20: Nimzo-Indian: 4 g3 and 4 f3.} Rb8 {[%emt 0:21:13]} 12. Rd1 {[%emt 0:10:28] [#]} Ne7 $146 {[%emt 0:03:37]} ({Predecessor:} 12... Rb6 13. Be3 Nd4 14. Nxd4 Bb7 15. Qb3 cxd4 16. Bxd4 Bc5 17. Qc2 Qc7 18. Qf2 Bxd4 19. Rxd4 {1-0 (50) Sommer,M (1944)-Ponnath,L (2070) Bayern 1999}) 13. Qg5 {[%emt 0:02:44]} Rb6 {[%emt 0:03:28]} 14. Nf4 {[%emt 0:00:47] White is much more active.} h6 {[%emt 0:09:41]} 15. Qg3 {[%emt 0:06:00]} Bxc3 {[%emt 0:06:07]} 16. bxc3 {[%emt 0:00:05]} Bb7 {[%emt 0:00:22]} 17. Be3 {[%emt 0:00:32]} Qc8 {[%emt 0:00:31]} 18. Nd3 $40 {[%emt 0:03:23][%mdl 128] White is out for blood.} Re8 {[%emt 0:14:02]} 19. Bxc5 {[%emt 0:05:20]} Rg6 {[%emt 0:00:07]} 20. Qf2 {[%emt 0:00:13]} d6 {[%emt 0:03:58]} 21. Bxa7 {[%emt 0:01:46]} d5 {[%emt 0:07:12]} 22. Nf4 dxe4 {[%emt 0:00:21]} 23. Nxg6 {[%emt 0:01:55]} Nxg6 {[%emt 0:00:07]} 24. fxe4 {[%emt 0:00:30]} Bxe4 {[%emt 0:01:39]} (24... Qxc3 $16 25. Rac1 Qe5) 25. Bd4 $18 {[%emt 0:00:27]} f5 {[%emt 0:02:31]} 26. Qb2 $2 {[%emt 0:03:19]} (26. a4 $18) 26... Nf4 {[%emt 0:01:27] [#]} ({Black should try} 26... Nh4 $14) 27. Rd2 $1 $16 {[%emt 0:01:00]} Re6 {[%emt 0:01:19]} 28. Rf1 {[%emt 0:09:12]} Qc7 {[%emt 0:00:19]} 29. Be3 {[%emt 0:02:51]} Nd5 {[%emt 0:01:42] [#]} 30. Qb3 $1 {[%emt 0:02:26]} Rg6 $2 {[%emt 0:00:35][%mdl 8192]} (30... Kh8 $16 {is tougher.} 31. Bd4 Rc6 32. Rxf5 Bxf5 33. Qxd5 Be6) 31. Rxf5 $2 {[%emt 0:03:18]} Bxf5 {[%emt 0:00:28]} 32. Qxd5+ {[%emt 0:00:01]} Be6 {[%emt 0:00:34]} 33. Qd8+ {[%emt 0:00:04]} Qxd8 {[%emt 0:00:07]} 34. Rxd8+ {[%emt 0:00:01][%mdl 4096] Endgame KRB-KRB} Kf7 {[%emt 0:00:07]} 35. a4 {[%emt 0:03:03][%cal Ba2a4,Ba4a5][%mdl 32]} Ke7 {[%emt 0:00:03]} 36. Rd2 {[%emt 0:00:43]} Bc8 {[%emt 0:01:21]} 37. a5 {[%emt 0:00:28]} Bb7 {[%emt 0:00:21]} 38. Bc5+ {[%emt 0:00:13]} Ke8 {[%emt 0:00:22]} 39. Rb2 {[%emt 0:00:34]} Bd5 {[%emt 0:00:28]} 40. Bb6 {[%emt 0:00:10]} Bb7 {[%emt 0:00:54]} 41. c4 {[%emt 0:00:34][%cal Bc3c4,Bc4c5,Bc5c6,Bc6c7][%mdl 32]} Rg4 {[%emt 0:01:03]} (41... Ba6 $16 42. g3 Bxc4) 42. c5 $18 {[%emt 0:00:26]} Kd7 {[%emt 0:00:27]} (42... Rg6 {keeps fighting.} 43. Rd2 Ke7) 43. Ra2 {[%emt 0:00:09]} Ba6 {[%emt 0:00:41]} 44. Rd2+ {[%emt 0:00:05]} Ke7 {[%emt 0:00:36]} 45. c6 {[%emt 0:00:26] Rd7+ is the strong threat.} Rc4 {[%emt 0:00:03]} 46. c7 {[%emt 0:01:44]} Bb7 {[%emt 0:00:34]} 47. g3 {[%emt 0:00:44]} g5 {[%emt 0:00:15]} (47... Ba6 $142 48. Rd8 Ke6) 48. Kf2 {[%emt 0:00:05]} h5 {[%emt 0:00:10]} (48... Rc6 $142 49. Rd8 Ke6) 49. Rd8 {[%emt 0:00:40]} h4 $2 {[%emt 0:00:55]} (49... Ke6 50. Rg8 Kd7) 50. gxh4 {[%emt 0:00:35]} gxh4 {[%emt 0:00:02]} 51. Ke3 {[%emt 0:00:30] aiming for Rb8.} h3 {[%emt 0:00:17]} (51... Ke6 $142 52. Re8+ Kd7 53. Rd8+ Ke6) 52. Rb8 {[%emt 0:00:47]} Ba6 {[%emt 0:00:12]} 53. Kf3 {[%emt 0:00:07]} (53. Ra8 $142 Bb7 54. Ra7) 53... Kd7 {[%emt 0:01:16]} 54. Rd8+ {[%emt 0:00:08]} Ke7 {[%emt 0:00:07]} 55. Kg3 {[%emt 0:00:04]} Rc3+ {[%emt 0:00:06]} 56. Kh4 {[%emt 0:00:07]} Bb7 {[%emt 0:00:17]} 57. Rg8 {[%emt 0:00:39]} Kd6 {[%emt 0:01:09]} 58. Rg3 {[%emt 0:00:25]} Rc4+ {[%emt 0:00:09]} (58... Rxg3 {was called for.} 59. Kxg3 Bc8) 59. Rg4 $2 {[%emt 0:00:52]} (59. Kh5 $18) 59... Rc3 {[%emt 0:00:56][%mdl 8192]} (59... Rxg4+ $16 {is a better chance.} 60. Kxg4 Bc8+ 61. Kf4 Ba6) 60. Rd4+ {[%emt 0:00:25]} Kc6 {[%emt 0:00:41]} (60... Ke6 $142 61. Rd8 Kf5) 61. Rd8 {[%emt 0:00:26]} Kb5 {[%emt 0:00:12]} 62. Rb8 {[%emt 0:00:06]} Ka6 {[%emt 0:01:26]} 63. Kg4 {[%emt 0:00:04]} Bd5 {[%emt 0:00:43]} 64. Rh8 {[%emt 0:01:16]} ({Not} 64. c8=Q+ Rxc8 65. Rxc8 Be6+ 66. Kg5 Bxc8 $14) 64... Be6+ {[%emt 0:00:23]} 65. Kf4 {[%emt 0:00:05] White threatens Re8 and mate.} Kb7 $2 {[%emt 0:00:29]} (65... Rc6 $18 66. Ke4 Kb7 67. Rb8+ Ka6) 66. Rb8+ {[%emt 0:00:04]} Ka6 {[%emt 0:00:07]} 67. Ke5 $2 {[%emt 0:00:04]} (67. Re8) 67... Bg4 $2 {[%emt 0:00:25]} (67... Rc6 $18 68. Re8 Bd7) 68. Rg8 {[%emt 0:00:06]} Bd7 {[%emt 0:00:14]} 69. Kd6 {[%emt 0:00:19]} Bf5 {[%emt 0:00:08]} 70. Ra8+ {[%emt 0:00:18]} Kb5 {[%emt 0:00:11]} 71. Rf8 $2 {[%emt 0:01:40]} (71. Ke5 {mates} Bd7 72. Rd8 Bg4 73. Rg8 Bd7 74. Kd6 Rd3+ 75. Ke7 Kc6 76. Rd8) 71... Bg4 $2 {[%emt 0:00:27]} (71... Rc6+ $18 72. Ke5 Bg4) 72. Ke7 {[%emt 0:00:19]} (72. Rg8 $142 Rc6+ 73. Ke7 Be2 74. c8=Q Rxc8 75. Rxc8 Bg4 76. Rc5+ Kb4 77. a6) 72... Ka6 {[%emt 0:01:14]} 73. Ra8+ {[%emt 0:00:27]} (73. Rf6 $142 Rc2 74. Kd8) 73... Kb7 {[%emt 0:00:15]} 74. Ra7+ $2 {[%emt 0:00:16]} (74. Rb8+ $18 {is more deadly.} Ka6 75. Rg8) 74... Kc8 $16 {[%emt 0:00:09]} 75. Ra8+ $2 {[%emt 0:00:40][%mdl 8192]} (75. Kd6 $16 Bf3 76. Ke5) 75... Kb7 $18 {[%emt 0:00:01]} 76. Rb8+ {[%emt 0:00:08]} Ka6 {[%emt 0:00:04]} 77. Kd6 {[%emt 0:00:41]} Rc2 {[%emt 0:00:16]} 78. Rg8 {[%emt 0:00:24]} Bf5 {[%emt 0:00:19]} 79. Rf8 {[%emt 0:03:48]} Bg4 {[%emt 0:00:07]} 80. Rf2 $2 {[%emt 0:07:26] Inhibits Rd2+.} (80. Be3 $18 Kb7 81. Rb8+ Ka6 82. Rg8) 80... Rxf2 $14 {[%emt 0:00:57]} 81. Bxf2 {[%emt 0:00:01] White wants to mate with Ke7.} Kxa5 {[%emt 0:00:17]} 82. Kc6 {[%emt 0:00:20] Intending Kb7 and mate.} Ka6 {[%emt 0:00:07]} 83. Bg3 {[%emt 0:00:22]} Bf3+ {[%emt 0:00:25]} 84. Kd7 {[%emt 0:00:07]} Bg4+ {[%emt 0:00:05] Weighted Error Value: White=0.41/Black=0.48} 1/2-1/2

[Event "1000IM Saint Louis 2022"]
[Site "Saint Louis"]
[Date "2022.07.20"]
[Round "3.3"]
[White "Williams, Justus"]
[Black "Wang, Tianqi"]
[Result "0-1"]
[ECO "D23"]
[WhiteElo "2390"]
[BlackElo "2402"]
[Annotator "TA"]
[PlyCount "111"]
[EventDate "2022.07.20"]
[EventType "tourn"]
[EventCountry "USA"]
[SourceTitle "playchess.com"]
[Source "ChessBase"]
[SourceQuality "1"]
[TimeControl "5400+30"]

{[%evp 19,111,-12,-10,-16,13,9,5,8,6,12,13,0,16,-12,-8,-12,-19,-15,-16,-33,-35,-47,-47,-75,-81,-79,-73,-73,-62,-131,-119,-239,-57,-70,-58,-58,-62,-58,-65,-71,-71,-71,-65,-67,-66,-71,-75,-138,-127,-160,-160,-160,-156,-143,-104,-130,-74,-189,-182,-241,-241,-168,-168,-406,-568,-535,-535,-1825,-1825,-1825,-104,-1825,-1709,-1825,-1825,-1499,-1033,-4590,-2234,-29953,-29950,-12575,-5936,-29961,-29961,-29963,-29964,-29963,-29965,-29957,-29960,-29961,-29970,-4606]} 1. d4 {[%emt 0:00:44]} d5 {[%emt 0:00:03]} 2. c4 {[%emt 0:00:44]} c6 {[%emt 0:00:07]} 3. Nf3 {[%emt 0:03:15]} Nf6 {[%emt 0:00:19]} 4. Qc2 {[%emt 0:02:33]} dxc4 {[%emt 0:03:30]} 5. Qxc4 {[%emt 0:01:47]} Bf5 {[%emt 0:00:08]} 6. Nc3 {[%emt 0:01:50]} e6 {[%emt 0:00:20]} 7. g3 {[%emt 0:04:02]} Be7 {[%emt 0:00:23]} 8. Bg2 {[%emt 0:00:54]} O-O {[%emt 0:05:25]} 9. O-O {[%emt 0:03:27]} Nbd7 {[%emt 0:01:18]} 10. Bg5 {[%emt 0:03:11]} h6 {[%emt 0:02:48]} 11. Bxf6 {[%emt 0:03:28] D23: Queen's Gambit Accepted: 3 Nf3 Nf6 sidelines.} Nxf6 {[%emt 0:04:03]} 12. Ne5 {[%emt 0:01:53]} Nd7 {[%emt 0:05:43]} 13. Nxd7 {[%emt 0:05:41] The position is equal.} Qxd7 {[%emt 0:00:23] [#]} 14. e3 $146 {[%emt 0:02:29]} ({Predecessor:} 14. Rfd1 Rfd8 15. Rac1 Rac8 16. a3 Qc7 17. e3 Qa5 18. Qa4 Qb6 19. b4 Bg4 20. Re1 {½-½ (27) Dreev,A (2670)-Chernin,A (2600) Reggio Emilia 1995}) 14... Rfd8 {[%emt 0:12:32]} 15. Rfd1 {[%emt 0:03:35]} Rac8 {[%emt 0:02:07]} 16. b4 {[%emt 0:02:57]} Qd6 {[%emt 0:01:42]} 17. a3 {[%emt 0:06:34]} e5 {[%emt 0:02:26]} 18. Ne4 {[%emt 0:07:36]} Qc7 {[%emt 0:04:41]} 19. Nc5 {[%emt 0:02:13]} exd4 {[%emt 0:00:27]} 20. exd4 {[%emt 0:01:38]} b6 {[%emt 0:02:15]} 21. Nb3 {[%emt 0:05:38]} Be6 {[%emt 0:01:03] This bishop pair is nice.} 22. Qc2 {[%emt 0:02:08]} Bf6 {[%emt 0:00:34][%cal Oc6c5]} 23. Rac1 {[%emt 0:00:53]} Qd6 {[%emt 0:00:16] Against d5} 24. Nd2 {[%emt 0:07:34]} (24. Bf1 $15) 24... Bxd4 $17 {[%emt 0:08:31]} (24... Qxd4 25. Ne4 Qe5 26. Qa4 $15) 25. Bxc6 {[%emt 0:02:51]} (25. Nf3 $17 c5 26. Qb1) 25... Bxf2+ $2 {[%emt 0:12:34]} 26. Kxf2 $15 {[%emt 0:02:07] Nf3 is the strong threat.} Qd4+ {[%emt 0:00:14]} 27. Kg2 {[%emt 0:10:53] [#] Threatens to win with b5.} Rxc6 $1 {[%emt 0:09:04][%mdl 64] Remove Defender, Decoy} 28. Qxc6 {[%emt 0:00:31]} Bd5+ {[%emt 0:00:01]} 29. Nf3 {[%emt 0:00:16]} Bxc6 {[%emt 0:00:08]} 30. Rxd4 {[%emt 0:00:10]} Bxf3+ {[%emt 0:00:03][%mdl 64] Remove Defender} 31. Kxf3 {[%emt 0:00:12]} Rxd4 $17 {[%emt 0:00:02][%mdl 4096] Endgame KR-KR} 32. Rc8+ {[%emt 0:01:10]} Kh7 {[%emt 0:00:05] White must now prevent ...Rd3+.} 33. Rc7 {[%emt 0:00:47]} (33. Ke3 $142 Rd7 34. Rc6) 33... Rd3+ {[%emt 0:00:08]} 34. Kg2 {[%emt 0:01:24]} Rxa3 {[%emt 0:00:11]} 35. Rxf7 {[%emt 0:00:06]} Kg6 {[%emt 0:00:38]} 36. Rc7 {[%emt 0:00:09]} Ra4 {[%emt 0:04:19]} 37. b5 {[%emt 0:01:01]} Ra5 {[%emt 0:01:19]} (37... Ra2+ $142 38. Kg1 Kf6) 38. Rc6+ {[%emt 0:00:41]} (38. h4 $17) 38... Kf5 $19 {[%emt 0:00:21]} 39. Rc7 {[%emt 0:00:01]} (39. g4+ {is a better defense.} Ke4 40. Rc4+ Ke5 41. Rc7) 39... g5 {[%emt 0:02:23]} ({Weaker is} 39... Rxb5 40. Rxa7 Rb2+ 41. Kf3 $17) 40. h3 {[%emt 0:01:43]} h5 {[%emt 0:00:36][%cal Bh6h5,Bh5g4][%mdl 32]} ({Worse is} 40... Rxb5 41. Rxa7 Ke4 42. h4 $17) 41. Rh7 $2 {[%emt 0:00:40]} (41. Kf3 {is the only way for White.}) 41... Rxb5 {[%emt 0:02:32]} 42. Rxa7 {[%emt 0:00:17]} Rb2+ {[%emt 0:00:05]} 43. Kf3 {[%emt 0:00:28]} g4+ {[%emt 0:00:29]} 44. hxg4+ {[%emt 0:00:07]} hxg4+ {[%emt 0:00:04]} 45. Ke3 {[%emt 0:00:06] Loses the game.} Rg2 $1 {[%emt 0:00:30]} 46. Rf7+ {[%emt 0:00:11]} Ke5 {[%emt 0:01:06]} 47. Re7+ {[%emt 0:05:24] [#]} Kd6 $1 {[%emt 0:00:08]} 48. Re4 {[%emt 0:00:23]} Rxg3+ {[%emt 0:00:15]} 49. Kf2 {[%emt 0:00:02]} Rd3 {[%emt 0:00:13]} 50. Ke2 {[%emt 0:00:25] [#]} Rd5 $1 {[%emt 0:00:07] ( -> ...Re5)} ({Inferior is} 50... Rg3 51. Kf2 Kd5 52. Ra4 $17) 51. Rxg4 {[%emt 0:00:40]} Kc5 {[%emt 0:00:05] Black mates.} 52. Rg1 {[%emt 0:00:58]} b5 {[%emt 0:00:06]} 53. Rc1+ {[%emt 0:00:04]} Kb4 {[%emt 0:00:06]} 54. Ke3 {[%emt 0:00:23]} Ka3 {[%emt 0:01:06]} 55. Ke4 {[%emt 0:00:28]} Rd8 {[%emt 0:00:07]} 56. Ke5 {[%emt 0:01:45] Weighted Error Value: White=0.78/Black=0.10 (very precise)} 0-1

[Event "1000IM Saint Louis 2022"]
[Site "Saint Louis"]
[Date "2022.07.20"]
[Round "3.4"]
[White "Stefanov, Emil"]
[Black "Kozelov, Roman"]
[Result "1-0"]
[ECO "D15"]
[WhiteElo "2342"]
[BlackElo "2104"]
[Annotator "TA"]
[PlyCount "124"]
[EventDate "2022.07.20"]
[EventType "tourn"]
[EventCountry "USA"]
[SourceTitle "playchess.com"]
[Source "ChessBase"]
[SourceQuality "1"]
[TimeControl "5400+30"]

{[%evp 14,124,29,18,43,38,64,72,59,67,64,64,75,74,70,64,79,93,80,83,76,32,28,11,14,0,79,62,33,53,65,17,43,0,0,-16,21,16,60,60,60,60,60,60,74,75,73,70,76,68,67,61,60,48,63,39,70,8,8,50,8,16,8,16,16,21,22,22,23,15,33,23,29,30,55,23,36,0,0,0,0,0,0,0,0,0,0,0,0,0,0,0,0,0,0,0,0,0,0,0,0,0,0,0,0,0,0,0,0,0,0,0,0]} 1. d4 {[%emt 0:00:05]} d5 {[%emt 0:00:04]} 2. c4 {[%emt 0:00:10]} c6 {[%emt 0:00:03]} 3. Nf3 {[%emt 0:00:12]} Nf6 {[%emt 0:00:07]} 4. Nc3 {[%emt 0:00:18]} a6 {[%emt 0:00:10]} 5. e3 {[%emt 0:02:02]} b5 {[%emt 0:00:26]} 6. b3 {[%emt 0:00:12]} Bg4 {[%emt 0:00:26]} 7. Be2 {[%emt 0:01:39] 7.a4 is more advanced technology.} e6 {[%emt 0:00:10] 7...Nbd7 is not played anymore.} 8. O-O {[%emt 0:01:06]} Bb4 {[%emt 0:00:53] D15: Slav Defence: 4 Nc3 a6 and gambit lines after 4 Nc3 dxc4.} 9. Bd2 {[%emt 0:03:51][%cal Oc3d5,Bc1d2,Bd2c3,Bc3b4,Bb4d6,Bd6f4][%mdl 32]} Bxc3 {[%emt 0:03:16]} 10. Bxc3 {[%emt 0:00:18]} O-O {[%emt 0:00:04] [#] White is better.} 11. a4 $146 {[%emt 0:04:42][%cal Ra4b5]} ({Predecessor:} 11. Ne5 Bxe2 12. Qxe2 Nfd7 13. Nf3 Nf6 14. Ne5 Ne4 15. Bb4 Re8 16. f3 Nd6 17. Bxd6 Qxd6 {1-0 (42) Deuer,M (2122)-Marcziter,D (2232) Playchess.com INT 2020}) 11... bxc4 {[%emt 0:00:35]} 12. bxc4 {[%emt 0:00:07]} Nbd7 {[%emt 0:00:11]} 13. cxd5 {[%emt 0:08:01]} cxd5 {[%emt 0:00:50]} 14. a5 {[%emt 0:00:11]} Ne4 {[%emt 0:01:06]} 15. Bb4 {[%emt 0:04:55]} Re8 {[%emt 0:00:11]} 16. h3 {[%emt 0:00:51]} Bh5 {[%emt 0:09:06]} 17. Qa4 {[%emt 0:04:21]} Ng5 $1 {[%emt 0:07:34]} 18. Bd6 {[%emt 0:18:06]} Nxf3+ {[%emt 0:13:17]} 19. gxf3 {[%emt 0:11:44]} Nf6 {[%emt 0:08:08]} (19... e5 $1 $11 {keeps the balance.}) 20. Bf4 {[%emt 0:09:18] White is more active.} Ne4 {[%emt 0:02:34]} 21. Qc2 {[%emt 0:00:48] Prevents Nd2.} Nd6 {[%emt 0:09:38]} 22. Rfc1 {[%emt 0:05:55]} (22. Bxd6 $14 Qxd6 23. Rfc1) 22... Nc4 {[%emt 0:04:58]} 23. Bxc4 {[%emt 0:03:52]} dxc4 {[%emt 0:01:11]} 24. Kg2 {[%emt 0:00:14]} Rc8 {[%emt 0:02:29]} (24... Qd5 $5 {[%cal Rd5f3]} 25. Qe4 Bg6 26. Qxd5 exd5 $11) 25. Ra4 $1 {[%emt 0:02:10]} h6 {[%emt 0:05:54]} 26. Rxc4 {[%emt 0:03:29]} Rxc4 {[%emt 0:00:06]} 27. Qxc4 {[%emt 0:00:03]} Qxa5 {[%emt 0:03:47]} 28. Qc6 {[%emt 0:00:07]} Qd8 {[%emt 0:02:00]} 29. Rc5 {[%emt 0:01:24]} Bg6 {[%emt 0:00:51]} 30. Qxa6 {[%emt 0:00:10]} Qe7 {[%emt 0:03:20]} 31. Rc7 {[%emt 0:00:57]} Qb4 {[%emt 0:01:11]} 32. Qc6 {[%emt 0:01:12]} Rd8 {[%emt 0:00:48]} 33. Be5 {[%emt 0:01:21]} Qb3 {[%emt 0:02:12]} 34. Qc5 {[%emt 0:06:07]} Qd1 {[%emt 0:01:29]} 35. Rc8 {[%emt 0:00:48]} (35. Qa3 $14) 35... Rxc8 $11 {[%emt 0:00:17]} 36. Qxc8+ {[%emt 0:00:03][%mdl 4096] Endgame KQB-KQB} Kh7 {[%emt 0:00:04]} 37. Qf8 {[%emt 0:00:11][%csl Ge5][%cal Rf8g7]} f6 {[%emt 0:00:04] [#]} 38. Bxf6 $1 {[%emt 0:00:04]} gxf6 {[%emt 0:00:28]} 39. Qe7+ {[%emt 0:00:10]} Kg8 {[%emt 0:00:28]} 40. Qxf6 {[%emt 0:00:12]} Bd3 {[%emt 0:03:08]} 41. Qxe6+ {[%emt 0:00:21]} Kg7 {[%emt 0:00:04] [#] aiming for ...Qf1+.} 42. Qe7+ {[%emt 0:01:45]} Kg6 {[%emt 0:00:25] And now ...Qf1+ would win.} 43. Qd6+ {[%emt 0:00:28]} Kh7 {[%emt 0:00:29]} 44. Qd7+ {[%emt 0:01:16]} Kh8 {[%emt 0:00:43]} 45. Qg4 {[%emt 0:00:45]} Qf1+ {[%emt 0:01:06] The position is equal.} 46. Kg3 {[%emt 0:00:04]} Qg1+ {[%emt 0:00:04]} 47. Kf4 {[%emt 0:00:05]} Qxf2 {[%emt 0:00:08]} 48. Qc8+ {[%emt 0:04:32]} Kh7 {[%emt 0:00:43]} 49. Qd7+ {[%emt 0:00:06]} Kg6 {[%emt 0:01:48]} 50. Qe6+ {[%emt 0:00:17]} Kg7 {[%emt 0:01:22]} (50... Kh7 $5 {[%cal Rf2h2]} 51. Qe7+ Kg6 52. Qe8+ Kg7 53. Qe7+ Kg6 54. Qe8+ Kg7 55. Qe7+ Kg6 $11) 51. Qe5+ {[%emt 0:00:14]} Kg6 {[%emt 0:00:59][%cal Rf2h4]} 52. Qe8+ {[%emt 0:01:01]} Kg7 {[%emt 0:00:19]} 53. Qd7+ {[%emt 0:00:08]} Kg6 {[%emt 0:00:30]} 54. Qg4+ {[%emt 0:00:29]} Kf7 {[%emt 0:01:07]} (54... Kh7 $5 {[%cal Rf2h2]}) 55. Qg3 {[%emt 0:03:12]} Qb2 {[%emt 0:01:02]} 56. Kg4 {[%emt 0:00:21]} Qd2 {[%emt 0:07:07]} 57. Qc7+ {[%emt 0:00:39]} Kg6 {[%emt 0:00:13] Threatens to win with ...Bf5+.} 58. Qd6+ {[%emt 0:00:08]} Kf7 {[%emt 0:00:56]} 59. Qd7+ {[%emt 0:01:24]} Kf6 {[%emt 0:00:17] ( -> ...Qg2+)} 60. Qd8+ {[%emt 0:00:16]} Kf7 {[%emt 0:00:14]} 61. Qd5+ {[%emt 0:00:11]} Kf6 {[%emt 0:00:59]} 62. Qe5+ {[%emt 0:00:08]} Kg6 {[%emt 0:01:57][%mdl 32768] Weighted Error Value: White=0.09 (flawless) /Black=0.09 (flawless) . Sensor Board Error (Ke4/e5)?} 1-0

[Event "1000IM Saint Louis 2022"]
[Site "Saint Louis"]
[Date "2022.07.20"]
[Round "3.5"]
[White "Altman, Joshua"]
[Black "Nyzhnyk, Illya"]
[Result "0-1"]
[ECO "E61"]
[WhiteElo "2162"]
[BlackElo "2686"]
[Annotator "TA"]
[PlyCount "104"]
[EventDate "2022.07.20"]
[EventType "tourn"]
[EventCountry "USA"]
[SourceTitle "playchess.com"]
[Source "ChessBase"]
[SourceQuality "1"]
[TimeControl "5400+30"]

{[%evp 12,104,0,0,0,0,0,0,6,6,5,0,0,7,15,-3,16,25,31,33,77,0,0,0,0,0,5,0,24,27,45,32,57,9,18,0,18,15,11,19,19,11,14,9,16,0,0,-49,-49,-48,-43,-45,-35,-35,-44,-41,-45,-43,-6,-6,-2,-8,0,-59,-54,-70,-77,-181,-178,-191,-188,-239,-250,-242,-247,-230,-171,-189,-189,-245,-254,-343,-342,-352,-325,-683,-681,-625,-616,-1837,-1649,-1636,-1445,-1968,-1353]} 1. d4 {[%emt 0:00:01]} Nf6 {[%emt 0:00:07]} 2. c4 {[%emt 0:00:02]} g6 {[%emt 0:00:06]} 3. Nc3 {[%emt 0:00:03]} Bg7 {[%emt 0:00:06]} 4. Nf3 {[%emt 0:00:02]} O-O {[%emt 0:00:08]} 5. Bg5 {[%emt 0:00:02]} c5 {[%emt 0:07:09]} 6. e3 {[%emt 0:00:04]} cxd4 {[%emt 0:00:12]} 7. Nxd4 {[%emt 0:01:20]} Qa5 {[%emt 0:00:46] E61: King's Indian: Early deviations for White, including Smyslov System.} 8. Bxf6 {[%emt 0:00:14]} Bxf6 {[%emt 0:00:07]} 9. Qd2 {[%emt 0:00:22]} Bg7 {[%emt 0:02:12] The position is equal.} 10. Be2 {[%emt 0:02:15]} Nc6 {[%emt 0:00:11]} 11. O-O {[%emt 0:01:34]} d6 {[%emt 0:00:52]} 12. Rfd1 {[%emt 0:01:47]} Bd7 {[%emt 0:00:41] [#]} 13. Nb3 $146 {[%emt 0:22:13]} ({Predecessor:} 13. a3 Rfc8 14. b4 Qd8 15. Rac1 Qf8 16. Nd5 e6 17. Nxc6 Bxc6 18. Nf4 Rd8 19. Bf1 {0-1 (43) Dvalishvili,P (2439)-Belous,V (2584) Moscow 2014}) 13... Qg5 {[%emt 0:02:14]} 14. c5 {[%emt 0:13:22]} Rad8 {[%emt 0:20:40]} 15. cxd6 {[%emt 0:07:58]} exd6 {[%emt 0:03:05]} 16. e4 {[%emt 0:10:14]} (16. Qxd6 $16 Bc8 17. Qc5 Qxc5 18. Nxc5) 16... Qh4 {[%emt 0:01:18]} 17. g3 {[%emt 0:12:21]} Qh3 {[%emt 0:00:06]} 18. Nd5 {[%emt 0:01:16]} (18. Qxd6 $2 Bxc3 19. bxc3 Bg4 $19) 18... Qe6 {[%emt 0:00:13]} 19. Bf3 {[%emt 0:02:02]} Ne5 {[%emt 0:01:02]} 20. Bg2 {[%emt 0:01:05]} Nc6 {[%emt 0:06:44]} (20... Nc4 21. Qb4 Rc8 22. Nd4 Bxd4 23. Rxd4 $16) 21. Rab1 {[%emt 0:02:53]} Kh8 {[%emt 0:01:16]} 22. Nf4 {[%emt 0:02:13]} (22. Na5 $14 {was preferrable.}) 22... Qe8 $11 {[%emt 0:02:48]} 23. Nd5 {[%emt 0:04:59]} (23. Qxd6 $2 Bg4 24. Qxd8 Nxd8 $19) 23... f5 {[%emt 0:00:20]} 24. Re1 {[%emt 0:02:45] White wants to play exf5.} Qf7 {[%emt 0:00:52]} 25. exf5 {[%emt 0:01:14]} Bxf5 {[%emt 0:00:19][%cal Bd7f5,Bf5e4,Be4f3][%mdl 32]} 26. Rbc1 {[%emt 0:00:23]} Rde8 {[%emt 0:05:38]} 27. Rxe8 {[%emt 0:02:44]} Rxe8 {[%emt 0:02:43]} 28. Ne3 {[%emt 0:01:10]} Be4 {[%emt 0:05:05]} 29. f3 {[%emt 0:03:12]} (29. Bxe4 $11 Rxe4 30. Qxd6) 29... Bxf3 $15 {[%emt 0:07:32]} 30. Rf1 {[%emt 0:00:04] [#]} Bh6 $1 {[%emt 0:00:03] A strong pair of Bishops.} 31. Qc3+ {[%emt 0:00:16]} ({Not} 31. Rxf3 $2 {[#]} Qxf3 $3 {[%mdl 512]} 32. Qc3+ Bg7 33. Bxf3 Bxc3 $19) 31... Qg7 {[%emt 0:00:04]} 32. Qxg7+ {[%emt 0:01:24]} Kxg7 {[%emt 0:00:05]} 33. Nf5+ {[%emt 0:00:31]} gxf5 {[%emt 0:00:06]} 34. Bxf3 {[%emt 0:00:14]} Re7 {[%emt 0:00:20]} 35. Kg2 {[%emt 0:01:16]} Be3 {[%emt 0:02:28]} 36. Rd1 {[%emt 0:02:36]} Rd7 {[%emt 0:00:07]} 37. Rd3 {[%emt 0:01:45]} (37. Bxc6 $11 bxc6 38. Na5) 37... Bb6 {[%emt 0:00:05]} 38. Rd5 {[%emt 0:00:24]} Kf6 {[%emt 0:00:14]} 39. g4 {[%emt 0:01:01]} (39. a3 $17) 39... Ne5 $19 {[%emt 0:00:06]} 40. h3 {[%emt 0:00:31]} h5 {[%emt 0:00:04][%cal Rh5g4]} 41. a4 {[%emt 0:00:25]} (41. Nd4 {keeps fighting.}) 41... hxg4 {[%emt 0:00:20]} ({Don't go for} 41... fxg4 $2 42. hxg4 hxg4 43. Bd1) 42. hxg4 {[%emt 0:00:04]} fxg4 {[%emt 0:00:08]} 43. Be4 {[%emt 0:00:08]} Ke6 {[%emt 0:01:29]} 44. a5 {[%emt 0:00:17]} Be3 {[%emt 0:00:06]} 45. a6 {[%emt 0:01:07]} (45. Kg3 $142) 45... bxa6 {[%emt 0:00:26]} 46. Ra5 {[%emt 0:00:11]} Bb6 {[%emt 0:00:09]} 47. Bd5+ {[%emt 0:00:13]} Kf5 {[%emt 0:00:07]} 48. Rxa6 {[%emt 0:00:06]} (48. Ra4) 48... Rc7 {[%emt 0:00:06] aiming for ...Rc2+. Black is clearly winning.} 49. Kf1 {[%emt 0:00:25]} Nc4 {[%emt 0:01:09] Hoping for ...Ne3+.} 50. Bg8 {[%emt 0:01:05]} Ne3+ {[%emt 0:00:22]} 51. Ke2 {[%emt 0:00:15]} Rg7 {[%emt 0:00:10]} 52. Rxb6 {[%emt 0:00:47]} axb6 {[%emt 0:00:05] Weighted Error Value: White=0.40/Black=0.07 (flawless)} 0-1